fUSD/lending_fUSD_20240105
["ID","MTS","AMOUNT","RATE_DAILY","PERIOD"]
[310270340,1704426667050,-500.0,0.00037534,3]
[310270341,1704426667059,-500.0,0.00037534,3]
[310270342,1704426667070,-596.01,0.00037534,3]
[310270343,1704426667080,-500.0,0.00037534,3]
[310270344,1704426667090,-500.0,0.00037534,3]
[310270345,1704426667099,-500.0,0.00037534,3]
[310270346,1704426667110,-519.26,0.00037534,3]
[310270347,1704426667120,-500.0,0.00037534,3]
[310270348,1704426667131,-500.0,0.00037534,3]
[310270349,1704426667141,-570.11565726,0.00037534,3]
[310270350,1704426667150,-500.0,0.00037534,3]
[310270351,1704426667161,-500.0,0.00037534,3]
[310270352,1704426667170,-538.38920738,0.00037534,3]
[310270353,1704426667180,-238.10769519,0.00037534,3]
[310270354,1704426667189,-500.0,0.00037534,3]
[310270355,1704426667199,-577.15563712,0.00037534,3]
[310270356,1704426667208,-591.03,0.00037534,3]
[310270357,1704426667218,-500.0,0.00037534,3]
[310270358,1704426667227,-500.0,0.00037534,3]
[310270359,1704426667237,-504.25,0.00037534,3]
[310270360,1704426667246,-500.0,0.00037534,3]
[310270361,1704426667257,-500.0,0.00037534,3]
[310270362,1704426667267,-500.0,0.00037534,3]
[310270363,1704426667276,-690.84,0.00037534,3]
[310270364,1704426667287,-500.0,0.00037534,3]
[310270365,1704426667297,-500.0,0.00037534,3]
[310270366,1704426667306,-500.0,0.00037534,3]
[310270367,1704426667320,-1472.06,0.00037534,3]
[310270368,1704426667330,-2696.47,0.00037534,3]
[310270369,1704426667341,-504.84,0.00037534,3]
[310270370,1704426667351,-500.0,0.00037534,3]
[310270371,1704426667362,-500.0,0.00037534,3]
[310270372,1704426667373,-3658.31,0.00037534,3]
[310270373,1704426667386,-724.31,0.00037534,3]
[310270374,1704426667396,-500.0,0.00037534,3]
[310270375,1704426667405,-3809.35,0.00037534,3]
[310270376,1704426667423,-500.0,0.00037534,3]
[310270377,1704426667434,-2426.03,0.00037534,3]
[310270378,1704426667458,-2276.94,0.00037534,3]
[310270379,1704426667469,-500.0,0.00037534,3]
[310270380,1704426667492,-649.27,0.00037534,3]
[310270381,1704426667504,-500.0,0.00037534,3]
[310270382,1704426667522,-857.38,0.00037534,3]
[310270383,1704426667535,-1101.54,0.00037534,3]
[310270384,1704426667550,-530.91,0.00037534,3]
[310270385,1704426667560,-989.21,0.00037534,3]
[310270386,1704426667575,-500.0,0.00037534,3]
[310270387,1704426667656,-4044.87,0.00037534,3]
[310270388,1704426667668,-1525.19,0.00037534,3]
[310270389,1704426667679,-959.81,0.00037534,3]
[310270390,1704426667694,-608.2,0.00037534,3]
[310270391,1704426667705,-1536.58,0.00037534,3]
[310270392,1704426667718,-500.0,0.00037534,3]
[310270393,1704426667733,-614.8,0.00037534,3]
[310270394,1704426667745,-617.87,0.00037534,3]
[310270395,1704426667757,-1198.95,0.00037534,3]
[310270396,1704426667766,-622.5,0.00037534,3]
[310270397,1704426667776,-500.0,0.00037534,3]
[310270398,1704426667785,-500.0,0.00037534,3]
[310270399,1704426667817,-1617.97,0.00037534,3]
[310270400,1704426667829,-571.01,0.00037534,3]
[310270401,1704426667843,-961.92,0.00037534,3]
[310270402,1704426667853,-500.0,0.00037534,3]
[310270403,1704426667864,-500.0,0.00037534,3]
[310270404,1704426667873,-504.63,0.00037534,3]
[310270405,1704426667899,-1085.34,0.00037534,3]
[310270406,1704426667910,-162.23876057,0.00037534,3]
[310270407,1704426667919,-500.0,0.00037534,3]
[310270408,1704426667929,-940.61,0.00037534,3]
[310270409,1704426667938,-500.0,0.00037534,3]
[310270410,1704426667948,-674.03,0.00037534,3]
[310270411,1704426667957,-752.67,0.00037534,3]
[310270412,1704426667967,-500.0,0.00037534,3]
[310270413,1704426667977,-1972.87,0.00037534,3]
[310270414,1704426667986,-500.0,0.00037534,3]
[310270415,1704426667996,-621.19,0.00037534,3]
[310270416,1704426668005,-1403.18,0.00037534,3]
[310270417,1704426668015,-822.72,0.00037534,3]
[310270418,1704426668024,-771.9,0.00037534,3]
[310270419,1704426668034,-847.37,0.00037534,3]
[310270420,1704426668044,-500.0,0.00037534,3]
[310270421,1704426668054,-500.0,0.00037534,3]
[310270422,1704426668063,-500.0,0.00037534,3]
[310270423,1704426668073,-865.75,0.00037534,3]
[310270424,1704426668082,-1363.94,0.00037534,3]
[310270425,1704426668092,-4604.97,0.00037534,3]
[310270426,1704426668102,-1152.91,0.00037534,3]
[310270427,1704426668111,-500.0,0.00037534,3]
[310270428,1704426668120,-500.0,0.00037534,3]
[310270429,1704426668130,-713.57,0.00037534,3]
[310270430,1704426668139,-833.72,0.00037534,3]
[310270431,1704426668149,-10636.52,0.00037534,3]
[310270432,1704426668159,-1032.64,0.00037534,3]
[310270433,1704426668168,-577.17,0.00037534,3]
[310270434,1704426668178,-697.16,0.00037534,3]
[310270435,1704426668187,-706.13,0.00037534,3]
[310270436,1704426668197,-500.0,0.00037534,3]
[310270437,1704426668206,-500.0,0.00037534,3]
[310270438,1704426668216,-500.0,0.00037534,3]
[310270439,1704426668225,-2369.49,0.00037534,3]
[310270440,1704426668235,-500.0,0.00037534,3]
[310270441,1704426668244,-500.0,0.00037534,3]
[310270442,1704426668254,-421.97325636,0.00037534,3]
[310270443,1704426668263,-500.0,0.00037534,3]
[310270444,1704426668272,-500.0,0.00037534,3]
[310270445,1704426668281,-500.0,0.00037534,3]
[310270446,1704426668291,-500.0,0.00037534,3]
[310270447,1704426668300,-500.0,0.00037534,3]
[310270448,1704426668309,-1047.44,0.00037534,3]
[310270449,1704426668318,-500.0,0.00037534,3]
[310270450,1704426668328,-500.0,0.00037534,3]
[310270451,1704426668337,-500.0,0.00037534,3]
[310270452,1704426668346,-500.0,0.00037534,3]
[310270453,1704426668356,-500.0,0.00037534,3]
[310270454,1704426668366,-641.05,0.00037534,3]
[310270455,1704426668377,-829.4,0.00037534,3]
[310270456,1704426668387,-500.0,0.00037534,3]
[310270457,1704426668397,-595.45,0.00037534,3]
[310270458,1704426668406,-670.02,0.00037534,3]
[310270459,1704426668415,-500.0,0.00037534,3]
[310270460,1704426668425,-500.0,0.00037534,3]
[310270461,1704426668434,-577.62864239,0.00037534,3]
[310270462,1704426668443,-1507.93,0.00037534,3]
[310270463,1704426668452,-500.0,0.00037534,3]
[310270464,1704426668462,-854.4,0.00037534,3]
[310270465,1704426668471,-6296.63,0.00037534,3]
[310270466,1704426668480,-500.0,0.00037534,3]
[310270467,1704426668489,-511.86570843,0.00037534,3]
[310270468,1704426668499,-1242.44,0.00037534,3]
[310270469,1704426668508,-500.0,0.00037534,3]
[310270470,1704426668518,-609.99,0.00037534,3]
[310270471,1704426668527,-702.9,0.00037534,3]
[310270472,1704426668536,-500.0,0.00037534,3]
[310270473,1704426668546,-998.14,0.00037534,3]
[310270474,1704426668556,-500.0,0.00037534,3]
[310270475,1704426668565,-500.0,0.00037534,3]
[310270476,1704426668574,-500.0,0.00037534,3]
[310270477,1704426668584,-1175.59,0.00037534,3]
[310270478,1704426668593,-500.0,0.00037534,3]
[310270479,1704426668603,-308.89032208,0.00037534,3]
[310270480,1704426668612,-500.0,0.00037534,3]
[310270481,1704426668622,-500.0,0.00037534,3]
[310270482,1704426668632,-500.0,0.00037534,3]
[310270483,1704426668641,-2629.24,0.00037534,3]
[310270484,1704426668651,-500.0,0.00037534,3]
[310270485,1704426668660,-749.33,0.00037534,3]
[310270486,1704426668670,-601.92,0.00037534,3]
[310270487,1704426668679,-281.07506581,0.00037534,3]
[310270488,1704426668689,-1845.39,0.00037534,3]
[310270489,1704426668699,-500.0,0.00037534,3]
[310270490,1704426668708,-500.0,0.00037534,3]
[310270491,1704426668717,-500.0,0.00037534,3]
[310270492,1704426668726,-585.01,0.00037534,3]
[310270493,1704426668736,-2516.38,0.00037534,3]
[310270494,1704426668745,-500.0,0.00037534,3]
[310270495,1704426668755,-3188.88,0.00037534,3]
[310270496,1704426668765,-500.0,0.00037534,3]
[310270497,1704426668777,-500.0,0.00037534,3]
[310270498,1704426668787,-2269.54,0.00037534,3]
[310270499,1704426668797,-1048.62,0.00037534,3]
[310270500,1704426668806,-500.0,0.00037534,3]
[310270501,1704426668816,-500.0,0.00037534,3]
[310270502,1704426668825,-500.0,0.00037534,3]
[310270503,1704426668834,-1600.87,0.00037534,3]
[310270504,1704426668843,-472.0,0.0003756,5]
[310270505,1704426668853,-721.38,0.0003757,7]
[310270506,1704426668862,-234.40105,0.00037588,4]
[310270507,1704426668872,-234.40105,0.00037598,2]
[310270508,1704426668882,-234.40105,0.00037698,2]
[310270509,1704426668892,-1134.21734938,0.00037736,8]
[310270510,1704426668901,-825.0,0.00037754,20]
[310270511,1704426668911,-362.0,0.00037754,20]
[310270512,1704426668920,-822.0,0.00037777,2]
[310270513,1704426668930,-594.54,0.00037777,2]
[310270514,1704426668939,-402.08,0.00037777,2]
[310270515,1704426668951,-293.32,0.00037777,2]
[310270516,1704426668960,-293.32,0.00037777,2]
[310270517,1704426668971,-234.40105,0.00037788,4]
[310270518,1704426668982,-1505.64806425,0.00037792,2]
[310270519,1704426668991,-234.40105,0.00037798,2]
[310270520,1704426669001,-1528.141427,0.000378,25]
[310270521,1704426669011,-373.253428,0.000378,2]
[310270522,1704426669021,-151.0,0.00037808,7]
[310270523,1704426669030,-151.0,0.00037808,7]
[310270524,1704426669040,-151.0,0.00037808,7]
[310270525,1704426669050,-208.482203,0.00037808,7]
[310270526,1704426669060,-208.482203,0.00037808,7]
[310270527,1704426669070,-165.64,0.00037808,2]
[310270528,1704426669079,-667.98,0.00037808,3]
[310270529,1704426669088,-500.0,0.00037808,3]
[310270530,1704426669098,-500.0,0.00037808,3]
[310270531,1704426669108,-500.0,0.00037808,3]
[310270532,1704426669117,-311.32,0.00037808,3]
[310270533,1704426669126,-361.41773105,0.00037808,3]
[310270534,1704426669137,-500.0,0.00037808,3]
[310270535,1704426669147,-500.0,0.00037808,3]
[310270536,1704426669156,-500.0,0.00037808,3]
[310270537,1704426669165,-519.26,0.00037808,3]
[310270538,1704426669174,-500.0,0.00037808,3]
[310270539,1704426669184,-500.0,0.00037808,3]
[310270540,1704426669194,-500.0,0.00037808,3]
[310270541,1704426669203,-500.0,0.00037808,3]
[310270542,1704426669213,-591.03,0.00037808,3]
[310270543,1704426669222,-500.0,0.00037808,3]
[310270544,1704426669232,-500.0,0.00037808,3]
[310270545,1704426669241,-504.25,0.00037808,3]
[310270546,1704426669251,-239.72689455,0.00037808,3]
[310270547,1704426669260,-500.0,0.00037808,3]
[310270548,1704426669270,-500.0,0.00037808,3]
[310270549,1704426669279,-690.84,0.00037808,3]
[310270550,1704426669288,-500.0,0.00037808,3]
[310270551,1704426669298,-500.0,0.00037808,3]
[310270552,1704426669307,-500.0,0.00037808,3]
[310270553,1704426669317,-1472.06,0.00037808,3]
[310270554,1704426669326,-2696.47,0.00037808,3]
[310270555,1704426669335,-504.84,0.00037808,3]
[310270556,1704426669345,-500.0,0.00037808,3]
[310270557,1704426669355,-500.0,0.00037808,3]
[310270558,1704426669365,-3658.31,0.00037808,3]
[310270559,1704426669374,-724.31,0.00037808,3]
[310270560,1704426669384,-500.0,0.00037808,3]
[310270561,1704426669393,-3809.35,0.00037808,3]
[310270562,1704426669404,-500.0,0.00037808,3]
[310270563,1704426669413,-2426.03,0.00037808,3]
[310270564,1704426669422,-2276.94,0.00037808,3]
[310270565,1704426669432,-500.0,0.00037808,3]
[310270566,1704426669442,-649.27,0.00037808,3]
[310270567,1704426669452,-500.0,0.00037808,3]
[310270568,1704426669462,-857.38,0.00037808,3]
[310270569,1704426669471,-530.91,0.00037808,3]
[310270570,1704426669481,-989.21,0.00037808,3]
[310270571,1704426669491,-1101.54,0.00037808,3]
[310270572,1704426669500,-500.0,0.00037808,3]
[310270573,1704426669510,-4044.87,0.00037808,3]
[310270574,1704426669520,-1525.19,0.00037808,3]
[310270575,1704426669529,-959.81,0.00037808,3]
[310270576,1704426669539,-608.2,0.00037808,3]
[310270577,1704426669549,-1536.58,0.00037808,3]
[310270578,1704426669558,-387.40540457,0.00037808,3]
[310270579,1704426669568,-614.8,0.00037808,3]
[310270580,1704426669578,-617.87,0.00037808,3]
[310270581,1704426669587,-1198.95,0.00037808,3]
[310270582,1704426669597,-622.5,0.00037808,3]
[310270583,1704426669607,-500.0,0.00037808,3]
[310270584,1704426669617,-500.0,0.00037808,3]
[310270585,1704426669627,-1617.97,0.00037808,3]
[310270586,1704426669639,-571.01,0.00037808,3]
[310270587,1704426669648,-961.92,0.00037808,3]
[310270588,1704426669657,-300.93684377,0.00037808,3]
[310270589,1704426669667,-500.0,0.00037808,3]
[310270590,1704426669676,-504.63,0.00037808,3]
[310270591,1704426669687,-1085.34,0.00037808,3]
[310270592,1704426669696,-500.0,0.00037808,3]
[310270593,1704426669707,-940.61,0.00037808,3]
[310270594,1704426669716,-500.0,0.00037808,3]
[310270595,1704426669726,-674.03,0.00037808,3]
[310270596,1704426669736,-752.67,0.00037808,3]
[310270597,1704426669745,-500.0,0.00037808,3]
[310270598,1704426669755,-1972.87,0.00037808,3]
[310270599,1704426669766,-500.0,0.00037808,3]
[310270600,1704426669776,-621.19,0.00037808,3]
[310270601,1704426669786,-1403.18,0.00037808,3]
[310270602,1704426669796,-822.72,0.00037808,3]
[310270603,1704426669806,-771.9,0.00037808,3]
[310270604,1704426669816,-847.37,0.00037808,3]
[310270605,1704426669826,-530.04614939,0.00037808,3]
[310270606,1704426669836,-500.0,0.00037808,3]
[310270607,1704426669846,-621.74642576,0.00037808,3]
[310270608,1704426669856,-865.75,0.00037808,3]
[310270609,1704426669865,-1363.94,0.00037808,3]
[310270610,1704426669875,-4604.97,0.00037808,3]
[310270611,1704426669886,-1152.91,0.00037808,3]
[310270612,1704426669896,-500.0,0.00037808,3]
[310270613,1704426669906,-500.0,0.00037808,3]
[310270614,1704426669915,-713.57,0.00037808,3]
[310270615,1704426669925,-833.72,0.00037808,3]
[310270616,1704426669937,-10636.52,0.00037808,3]
[310270617,1704426669947,-1032.64,0.00037808,3]
[310270618,1704426669957,-577.17,0.00037808,3]
[310270619,1704426669971,-697.16,0.00037808,3]
[310270620,1704426669981,-706.13,0.00037808,3]
[310270621,1704426669990,-510.48696553,0.00037808,3]
[310270622,1704426670011,-500.0,0.00037808,3]
[310270623,1704426670022,-500.0,0.00037808,3]
[310270624,1704426670047,-2369.49,0.00037808,3]
[310270625,1704426670060,-500.0,0.00037808,3]
[310270626,1704426670076,-500.0,0.00037808,3]
[310270627,1704426670088,-500.0,0.00037808,3]
[310270628,1704426670109,-500.0,0.00037808,3]
[310270629,1704426670121,-500.0,0.00037808,3]
[310270630,1704426670141,-500.0,0.00037808,3]
[310270631,1704426670151,-500.0,0.00037808,3]
[310270632,1704426670167,-1047.44,0.00037808,3]
[310270633,1704426670192,-500.0,0.00037808,3]
[310270634,1704426670210,-500.0,0.00037808,3]
[310270635,1704426670221,-500.0,0.00037808,3]
[310270636,1704426670233,-500.0,0.00037808,3]
[310270637,1704426670246,-500.0,0.00037808,3]
[310270638,1704426670257,-641.05,0.00037808,3]
[310270639,1704426670270,-829.4,0.00037808,3]
[310270640,1704426670282,-500.0,0.00037808,3]
[310270641,1704426670295,-595.45,0.00037808,3]
[310270642,1704426670307,-670.02,0.00037808,3]
[310270643,1704426670319,-500.0,0.00037808,3]
[310270644,1704426670328,-500.0,0.00037808,3]
[310270645,1704426670338,-1507.93,0.00037808,3]
[310270646,1704426670347,-500.0,0.00037808,3]
[310270647,1704426670367,-854.4,0.00037808,3]
[310270648,1704426670377,-6296.63,0.00037808,3]
[310270649,1704426670388,-500.0,0.00037808,3]
[310270650,1704426670397,-1242.44,0.00037808,3]
[310270651,1704426670407,-609.99,0.00037808,3]
[310270652,1704426670417,-500.0,0.00037808,3]
[310270653,1704426670427,-702.9,0.00037808,3]
[310270654,1704426670437,-500.0,0.00037808,3]
[310270655,1704426670446,-998.14,0.00037808,3]
[310270656,1704426670455,-500.0,0.00037808,3]
[310270657,1704426670465,-500.0,0.00037808,3]
[310270658,1704426670474,-500.0,0.00037808,3]
[310270659,1704426670484,-1175.59,0.00037808,3]
[310270660,1704426670493,-500.0,0.00037808,3]
[310270661,1704426670503,-500.0,0.00037808,3]
[310270662,1704426670513,-500.0,0.00037808,3]
[310270663,1704426670522,-500.0,0.00037808,3]
[310270664,1704426670532,-2629.24,0.00037808,3]
[310270665,1704426670541,-500.0,0.00037808,3]
[310270666,1704426670551,-749.33,0.00037808,3]
[310270667,1704426670561,-601.92,0.00037808,3]
[310270668,1704426670570,-1845.39,0.00037808,3]
[310270669,1704426670580,-500.0,0.00037808,3]
[310270670,1704426670589,-500.0,0.00037808,3]
[310270671,1704426670598,-500.0,0.00037808,3]
[310270672,1704426670607,-585.01,0.00037808,3]
[310270673,1704426670617,-2516.38,0.00037808,3]
[310270674,1704426670627,-500.0,0.00037808,3]
[310270675,1704426670637,-3188.88,0.00037808,3]
[310270676,1704426670647,-500.0,0.00037808,3]
[310270677,1704426670656,-500.0,0.00037808,3]
[310270678,1704426670672,-2269.54,0.00037808,3]
[310270679,1704426670687,-1048.62,0.00037808,3]
[310270680,1704426670712,-500.0,0.00037808,3]
[310270681,1704426670721,-444.48,0.00037808,3]
[310270682,1704426670731,-500.0,0.00037808,3]
[310270683,1704426670741,-1600.87,0.00037808,3]
[310270684,1704426670751,-215.97400947,0.00037827,11]
[310270685,1704426670769,-276.9,0.00037836,2]
[310270686,1704426670779,-153.81315469,0.00037849,2]
[310270687,1704426670788,-208.417773,0.00037862,2]
[310270688,1704426670798,-234.40105,0.00037898,2]
[310270689,1704426670807,-151.0,0.000379,7]
[310270690,1704426670817,-151.0,0.000379,7]
[310270691,1704426670826,-151.0,0.000379,7]
[310270692,1704426670838,-167.266201,0.000379,7]
[310270693,1704426670847,-151.032877,0.000379,7]
[310270694,1704426670856,-151.0,0.000379,7]
[310270695,1704426670866,-171.172311,0.000379,7]
[310270696,1704426670876,-208.482203,0.000379,7]
[310270697,1704426670886,-208.482203,0.000379,7]
[310270698,1704426670896,-225.31974,0.000379,7]
[310270699,1704426670906,-618.600043,0.000379,7]
[310270700,1704426670915,-618.600043,0.000379,7]
[310270701,1704426670924,-151.0,0.000379,7]
[310270702,1704426670933,-151.0,0.000379,7]
[310270703,1704426670943,-217685.73352662,0.000379,3]
[310270704,1704426671127,-320.168324,0.000379,3]
[310270705,1704426671646,-500.0,0.00032877,2]
[310270706,1704426671657,-500.0,0.00035616,3]
[310270707,1704426671666,-500.0,0.00035616,3]
[310270708,1704426671676,-500.0,0.00035616,3]
[310270709,1704426671685,-234.09029443,0.0003589,3]
[310270710,1704426671694,-576.49814958,0.0003589,3]
[310270711,1704426671704,-464.11904582,0.00036712,3]
[310270712,1704426671714,-500.0,0.00036986,3]
[310270713,1704426671723,-500.0,0.0003726,3]
[310270714,1704426671732,-500.0,0.00037534,3]
[310270715,1704426671741,-338.23639692,0.00037808,3]
[310270716,1704426671751,-12428.24853023,0.000379,3]
[310270717,1704426671767,-500.0,0.0003589,3]
[310270718,1704426671777,-653.15851554,0.000379,3]
[310270719,1704426671788,-30375.16430181,0.000379,3]
[310270720,1704426671804,-302.84579629,0.000379,3]
[310270721,1704426672138,-343.9944031,0.00035606,10]
[310270722,1704426672151,-411.5555969,0.00035606,10]
[310270723,1704426672161,-330.5444031,0.00035616,2]
[310270724,1704426672173,-497.5,0.00035616,2]
[310270725,1704426672185,-469.60848796,0.00035616,2]
[310270726,1704426672197,-309.34104354,0.00035616,2]
[310270727,1704426672209,-225.17421708,0.00035616,2]
[310270728,1704426672219,-57.86083068,0.00036164,3]
[310270729,1704426672232,-367.75952864,0.00036164,3]
[310270730,1704426672242,-1478.50265105,0.000379,3]
[310270731,1704426672254,-56723.48394569,0.000379,3]
[310270732,1704426672267,-28450.94655559,0.000379,3]
[310270733,1704426672279,-550.25133661,0.000379,3]
[310270734,1704426672291,-653.1547967,0.000379,3]
[310270735,1704426672302,-2909.9450967,0.000379,3]
[310270736,1704426672314,-800.18493762,0.000379,3]
[310270737,1704426672326,-1311.80686632,0.000379,3]
[310270738,1704426672337,-276.90558802,0.000379,3]
[310270739,1704426672371,-1959.89150662,0.000379,3]
[310270740,1704426672384,-97686.95253034,0.000379,3]
[310270741,1704426672396,-1542.94734233,0.000379,3]
[310270742,1704426672407,-7670.15346541,0.000379,3]
[310270743,1704426685871,1058.32623292,0.00023159,7]
[310270744,1704426692267,318.91681807,0.00022,2]
[310270745,1704426693630,360.8074743,0.000225,2]
[310270746,1704426713112,485.90296011,6.94e-05,2]
[310270747,1704426713136,2440.0,6.94e-05,2]
[310270748,1704426713158,14128.35846179,6.94e-05,2]
[310270749,1704426724506,402.11577537,0.0002,2]
[310270750,1704426726815,559.79447405,0.000199,3]
[310270754,1704426848774,4812.669999,0.0002,2]
[310270755,1704426860739,234.64425653,0.00022,2]
[310270756,1704426864871,205.12712057,0.0001,2]
[310270757,1704426865002,54240.28522929,0.00022,2]
[310270758,1704426969359,166.2,0.00022224,2]
[310270759,1704427023655,185.76825091,0.00022,2]
[310270760,1704427025026,197.96,0.00021929,2]
[310270761,1704427064956,495.62026608,0.0002244,2]
[310270762,1704427096231,150.0,0.00021855,2]
[310270763,1704427118702,544.4,0.00021756,2]
[310270764,1704427142483,1176.68,0.00021745,2]
[310270765,1704427210325,250.0,0.0002174,2]
[310270766,1704427225480,188.44,0.00021741,2]
[310270767,1704427230375,722.47,0.00019824,2]
[310270768,1704427230573,89.91189644,0.00022087,2]
[310270769,1704427230597,632.55810356,0.00022087,2]
[310270770,1704427232549,161.18610091,0.00022447,2]
[310270771,1704427237230,161.18610091,0.00022482,2]
[310270772,1704427261640,200.0,0.00021677,2]
[310270773,1704427305690,827.66,0.00021664,2]
[310270774,1704427347616,175.95,0.00021826,2]
[310270775,1704427376099,161.66,0.00021867,2]
[310270776,1704427382038,1847.25010805,0.00022439,2]
[310270777,1704427382064,4167.45041343,0.00022439,2]
[310270778,1704427382086,196154.29947852,0.00022439,2]
[310270779,1704427405867,166.74,0.00021646,2]
[310270780,1704427431118,23900.0,0.00021654,2]
[310270781,1704427518910,155.2,0.00021649,2]
[310270782,1704427519111,155.2,0.00021776,2]
[310270783,1704427519322,155.2,0.00021903,2]
[310270784,1704427519595,155.2,0.00022031,2]
[310270785,1704427519775,155.2,0.00022158,2]
[310270786,1704427520169,155.2,0.00022285,2]
[310270787,1704427520569,155.2,0.00022413,2]
[310270788,1704427540181,272.2,0.00021644,2]
[310270789,1704427606712,1098.23,0.00021687,2]
[310270790,1704427612932,1000.0,0.00021674,2]
[310270791,1704427622993,2140.03006782,0.000225,2]
[310270792,1704427625562,607.74,0.00021691,2]
[310270793,1704427626839,3037.08558605,0.000225,2]
[310270794,1704427631585,405.23207786,0.000225,2]
[310270795,1704427632597,250.0,0.00021696,2]
[310270796,1704427639568,175.81,0.00022,2]
[310270797,1704427645579,5319.27465842,0.000225,2]
[310270798,1704427651457,500.0,0.00022,2]
[310270799,1704427662648,161.18610091,0.00022402,2]
[310270800,1704427664924,3615.56141849,0.000225,2]
[310270801,1704427666971,650.22,0.00019777,2]
[310270802,1704427667363,650.22,0.00022041,2]
[310270803,1704427667655,161.18610091,0.00022447,2]
[310270804,1704427672657,161.18610091,0.00022493,2]
[310270805,1704427689496,2140.03006782,0.000225,2]
[310270806,1704427701339,3037.08558605,0.000225,2]
[310270808,1704427722878,151.07687174,0.00022,2]
[310270810,1704427725825,150.0,0.00022,2]
[310270811,1704427730094,150.0,0.00022,2]
[310270813,1704427737662,250.0,0.00022,2]
[310270814,1704427738943,250.0,0.00022274,2]
[310270817,1704427761697,870.19,0.00021659,2]
[310270822,1704427831953,-161.18610091,0.00022538,2]
[310270823,1704427831963,-155.2,0.0002254,2]
[310270824,1704427831973,-1918.69526284,0.00022545,2]
[310270825,1704427832013,-701.79631246,0.00022545,2]
[310270826,1704427832025,-1989.99581272,0.00022545,2]
[310270827,1704427832070,-1068.08749624,0.00022545,2]
[310270828,1704427832079,-738.22057637,0.00022546,2]
[310270829,1704427832103,-1401.80949145,0.00022546,2]
[310270830,1704427832113,-150.0,0.00022547,2]
[310270831,1704427832122,-175.81,0.00022548,2]
[310270832,1704427832132,-500.0,0.00022548,2]
[310270833,1704427832141,-152.26271148,0.00022548,2]
[310270834,1704427832152,-250.0,0.00022548,2]
[310270835,1704427832162,-155.41454198,0.00022554,2]
[310270836,1704427832171,-250.5234,0.00022566,2]
[310270837,1704427832181,-2967.5129077,0.00022566,2]
[310270838,1704427832235,-7454.0021923,0.00022566,2]
[310270839,1704427832245,-2958.5192,0.00022566,2]
[310270840,1704427832255,-2500.0,0.00022566,2]
[310270841,1704427832264,-7421.3012,0.00022566,2]
[310270842,1704427832274,-1000.0,0.00022567,2]
[310270843,1704427832284,-513.54,0.00022567,2]
[310270844,1704427832293,-791.9047015,0.00022567,2]
[310270845,1704427832303,-222.59076698,0.00022567,2]
[310270846,1704427832312,-350.25883049,0.00022567,2]
[310270847,1704427832321,-150.99,0.00022569,2]
[310270848,1704427832331,-951.16,0.00022569,2]
[310270849,1704427832340,-499.99,0.00022569,2]
[310270850,1704427832349,-22277.77020127,0.00022569,2]
[310270851,1704427832361,-2313.59975551,0.00022569,2]